fUSD/lending_fUSD_20250606
["ID","MTS","AMOUNT","RATE_DAILY","PERIOD"]
[364653457,1749183038671,-466.69116302,0.00029991,2]
[364653459,1749183038682,-151.0,0.00029992,2]
[364653461,1749183038691,-151.0,0.00029992,2]
[364653463,1749183038701,-162.72270637,0.00029992,2]
[364653465,1749183038710,-3600.0,0.0003,14]
[364653467,1749183038719,-50000.0,0.0003,7]
[364653469,1749183038729,-50000.0,0.0003,7]
[364653493,1749183038955,-50000.0,0.0003,7]
[364653495,1749183038965,-50000.0,0.0003,7]
[364653497,1749183038975,-50000.0,0.0003,7]
[364653499,1749183038985,-50000.0,0.0003,7]
[364653501,1749183038995,-21167.03262247,0.0003,4]
[364653503,1749183039004,-29900.0,0.0003,7]
[364653505,1749183039013,-466.69116302,0.00030001,2]
[364653507,1749183039023,-200.0,0.00030004,2]
[364653509,1749183039032,-3950.27710196,0.00030009,2]
[364653511,1749183039041,-1657.24571511,0.00030009,2]
[364653513,1749183039051,-5841.58,0.0003001,2]
[364653515,1749183039061,-466.69116302,0.00030011,2]
[364653517,1749183039070,-466.69116302,0.00030021,2]
[364653519,1749183039079,-5841.55,0.0003003,2]
[364653521,1749183039088,-466.69116302,0.00030031,2]
[364653523,1749183039097,-466.69116302,0.00030041,2]
[364653525,1749183039106,-3950.27710196,0.00030046,2]
[364653526,1749183039115,-1657.24571511,0.00030046,2]
[364653529,1749183039126,-466.69116302,0.00030052,2]
[364653531,1749183039136,-191.59647718,0.0003006,2]
[364653532,1749183039147,-150.0,0.00030068,2]
[364653534,1749183039157,-185.83718691,0.00030072,2]
[364653537,1749183039167,-205.78718657,0.00030074,22]
[364653539,1749183039176,-1000.0,0.00030076,2]
[364653541,1749183039186,-16582.9012173,0.00030078,2]
[364653542,1749183039195,-161.14916717,0.00030082,30]
[364653544,1749183039205,-3950.27710196,0.00030082,2]
[364653547,1749183039216,-1657.24571511,0.00030082,2]
[364653549,1749183039225,-150.0,0.00030106,2]
[364653551,1749183039235,-1000.0,0.00030113,2]
[364653553,1749183039245,-3950.27710196,0.00030119,2]
[364653554,1749183039254,-1657.24571511,0.00030119,2]
[364653557,1749183039263,-1000.0,0.00030125,2]
[364653558,1749183039272,-66331.6048694,0.00030134,2]
[364653560,1749183039281,-4860.02,0.00030136,7]
[364653562,1749183039290,-16582.9012173,0.00030141,2]
[364653564,1749183039299,-49748.703652,0.00030141,2]
[364653567,1749183039310,-56521.8286451,0.00030141,2]
[364653568,1749183039320,-16582.9012173,0.00030142,2]
[364653570,1749183039329,-14130.4571613,0.00030142,2]
[364653572,1749183039339,-7065.22858064,0.00030143,2]
[364653574,1749183039348,-242.36883894,0.00030143,2]
[364653577,1749183039358,-250.85622757,0.00030143,2]
[364653579,1749183039367,-356.59531763,0.00030143,2]
[364653581,1749183039376,-246.39442895,0.00030143,2]
[364653583,1749183039386,-310.83874491,0.00030143,2]
[364653584,1749183039398,-4860.02,0.00030144,7]
[364653586,1749183039407,-2222.75958181,0.00030144,7]
[364653644,1749183039931,-333.11272033,0.00030144,7]
[364653654,1749183040014,-2304.14769786,0.00030144,7]
[364653656,1749183040024,-7448.80976638,0.00030144,2]
[364653658,1749183040035,-1042.82955653,0.00030144,2]
[364653661,1749183040050,-11161.59776669,0.00030144,2]
[364653665,1749183040077,-466.69116302,0.00030062,2]
[364653667,1749183040087,-473.78458731,0.00030144,2]
[364653669,1749183040099,-1471.80078007,0.00030144,2]
[364653671,1749183040111,-2076.70402768,0.00030144,2]
[364653675,1749183040138,-487.16144789,0.00030144,2]
[364653712,1749183040584,-852.0,0.00029322,2]
[364653714,1749183040594,-42168.91693685,0.00030144,2]
[364653716,1749183040604,-56521.8286451,0.00030144,2]
[364653719,1749183040613,-16582.9012173,0.00030145,2]
[364653721,1749183040624,-14130.4571613,0.00030145,2]
[364653723,1749183040633,-182.89222727,0.0003015,7]
[364653725,1749183040644,-7065.22858064,0.00030151,2]
[364653727,1749183040654,-111.24535444,0.00030152,2]
[364653729,1749183040665,-3966.09801032,0.00030152,2]
[364653732,1749183040685,-422.79999979,0.00030152,2]
[364653735,1749183040705,-5233.52839809,0.00030152,2]
[364653738,1749183040720,-6849.22945466,0.00030152,2]
[364653740,1749183040730,-7065.22858064,0.00030152,2]
[364653742,1749183040740,-4860.02,0.00030153,7]
[364653744,1749183040750,-14130.4571613,0.00030153,2]
[364653746,1749183040760,-66331.6048694,0.00030154,2]
[364653748,1749183040769,-115871.00578219,0.00030154,2]
[364653750,1749183040781,-34474.27369918,0.00030154,2]
[364653752,1749183040792,-63714.51322967,0.00030154,2]
[364653754,1749183040803,-1156.2,0.00030154,2]
[364653757,1749183040815,-1004.8582406,0.00030154,2]
[364653761,1749183040849,-31062.14937036,0.00030154,2]
[364653763,1749183040858,-15938.39647197,0.00030154,2]
[364653766,1749183040882,-1082.64833014,0.00030154,2]
[364653769,1749183040893,-6678.69999998,0.00030154,2]
[364653771,1749183040904,-378.925,0.00030154,2]
[364653870,1749183043098,-206.0,0.00025741,2]
[364653871,1749183043108,-433.9262068,0.00030154,2]
[364653891,1749183076321,543.80680612,0.00035616,120]
[364653892,1749183701233,304.72205638,0.00035616,120]
[364653906,1749183982161,214.72,0.0003561,120]
[364653914,1749184060387,588.43535855,0.0002399,2]
[364653915,1749184060407,2853.72535855,0.0002399,2]
[364653916,1749184060428,2853.72535855,0.0002399,2]
[364653917,1749184060449,2853.72535855,0.0002399,2]
[364653918,1749184060470,2853.72535855,0.0002399,2]
[364653919,1749184060491,2853.72535855,0.0002399,2]
[364653920,1749184060512,2853.72535855,0.0002399,2]
[364653921,1749184060531,2853.72535855,0.0002399,2]
[364653922,1749184060551,2853.72535855,0.0002399,2]
[364653923,1749184060572,2853.72535855,0.0002399,2]
[364653946,1749184232405,-1033.0,0.00019399,2]
[364653947,1749184232415,-10597.2130464,0.000194,2]
[364653948,1749184232424,-639.17046413,0.0002389,2]
[364653949,1749184232434,-7699.52938193,0.0002399,2]
[364653950,1749184232466,-428.50950908,0.0002399,2]
[364653957,1749184237156,-34413.45211805,0.0002399,2]
[364653958,1749184237165,-205.72657876,0.000245,11]
[364653959,1749184237175,-205.72657864,0.0002465,11]
[364653960,1749184237184,-500.0,0.00024932,2]
[364653961,1749184237194,-205.72657864,0.000254,13]
[364653962,1749184237208,-205.72657864,0.0002615,14]
[364653963,1749184237218,-379.26101602,0.00026635,2]
[364653964,1749184237227,-640.5,0.00026797,2]
[364653965,1749184237237,-205.72657864,0.000269,16]
[364653966,1749184237247,-152.0,0.00027443,3]
[364653967,1749184237256,-600.0,0.00027484,7]
[364653968,1749184237265,-500.0,0.00027484,7]
[364653969,1749184237275,-205.72657864,0.0002765,17]
[364653970,1749184237284,-304.36,0.00028236,2]
[364653971,1749184237294,-300.64,0.00028236,2]
[364653972,1749184237303,-303.14,0.00028236,2]
[364653973,1749184237314,-304.09,0.00028236,2]
[364653974,1749184237323,-600.0,0.00028306,7]
[364653975,1749184237332,-205.72657864,0.000284,19]
[364653976,1749184237342,-170.54,0.00028778,2]
[364653977,1749184237351,-208.31,0.0002886,2]
[364653978,1749184237360,-167.87,0.0002893,2]
[364653979,1749184237368,-1000.0,0.00028931,2]
[364653980,1749184237377,-266.55,0.0002898,2]
[364653981,1749184237387,-3064.13507184,0.00028988,2]
[364653982,1749184237400,-691.65929644,0.00028988,2]
[364654006,1749184238250,-719.39,0.00028988,2]
[364654007,1749184238305,-557.23,0.00028988,2]
[364654008,1749184238360,-429.48757011,0.00028988,2]
[364654439,1749184243675,-10591.56696641,0.00028988,2]
[364654458,1749184244491,-1480.3010952,0.00028988,2]
[364654459,1749184244502,-795.4,0.00029031,30]
[364654460,1749184244512,-150.0,0.00029039,7]
[364654461,1749184244522,-640.5,0.00029061,2]
[364654462,1749184244531,-600.0,0.00029128,7]
[364654463,1749184244540,-500.0,0.00029128,7]
[364654464,1749184244550,-207.4,0.00029146,2]
[364654465,1749184244559,-205.72657864,0.0002915,20]
[364654466,1749184244569,-1806.97,0.00029163,2]
[364654467,1749184244579,-150.99,0.00029163,2]
[364654468,1749184244589,-3151.97,0.00029163,2]
[364654469,1749184244598,-304.459094,0.00029259,6]
[364654470,1749184244607,-980.87608745,0.00029303,2]
[364654471,1749184244617,-152.0,0.00029471,4]
[364654472,1749184244627,-16851.35,0.000298,2]
[364654473,1749184244636,-166.61,0.00029836,2]
[364654474,1749184244646,-1129.52626,0.0002985,2]
[364654475,1749184244655,-500.0,0.00029899,2]
[364654476,1749184244664,-500.0,0.00029899,2]
[364654477,1749184244673,-500.0,0.00029899,2]
[364654478,1749184244683,-500.0,0.00029899,2]
[364654479,1749184244692,-500.0,0.00029899,2]
[364654480,1749184244702,-500.0,0.00029899,2]
[364654481,1749184244711,-500.0,0.00029899,2]
[364654482,1749184244721,-500.0,0.00029899,2]
[364654483,1749184244730,-182.75922573,0.00029899,2]
[364654484,1749184244740,-500.0,0.00029899,2]
[364654485,1749184244751,-500.0,0.00029899,2]
[364654486,1749184244760,-500.0,0.00029899,2]
[364654487,1749184244770,-14403.16165898,0.000299,2]
[364654488,1749184244782,-1488.87600022,0.000299,2]
[364654489,1749184244824,-959.3123408,0.000299,2]
[364654490,1749184244834,-205.72657864,0.000299,21]
[364654491,1749184244843,-600.0,0.0002995,7]
[364654492,1749184244853,-151.0,0.00029957,2]
[364654493,1749184244862,-500.0,0.00029957,2]
[364654494,1749184244871,-500.0,0.00029957,2]
[364654495,1749184244881,-151.0,0.00029957,2]
[364654496,1749184244891,-500.0,0.00029957,2]
[364654497,1749184244901,-500.0,0.00029957,2]
[364654498,1749184244912,-500.0,0.00029957,2]
[364654499,1749184244921,-634.90288685,0.00029957,2]
[364654500,1749184244931,-2494.60326288,0.00029975,2]
[364654501,1749184244940,-5670.02794562,0.0003,3]
[364654502,1749184244950,-150.0,0.0003,7]
[364654503,1749184244959,-4172.57,0.0003,2]
[364654504,1749184244969,-4172.53,0.0003003,2]
[364654505,1749184244979,-150.0,0.00030041,2]
[364654506,1749184244988,-1185.08313066,0.00030044,2]
[364654507,1749184244997,-155.56372106,0.00030044,2]
[364654508,1749184245007,-150.0,0.00030045,2]
[364654509,1749184245017,-155.563721,0.00030051,2]
[364654510,1749184245026,-365.78513765,0.00030054,2]
[364654511,1749184245036,-497.17371456,0.00030054,2]
[364654512,1749184245046,-150.0,0.00030058,2]
[364654513,1749184245057,-155.563721,0.00030058,2]
[364654514,1749184245067,-153.27718172,0.00030064,2]
[364654515,1749184245077,-150.0,0.00030065,2]
[364654516,1749184245087,-155.563721,0.00030065,2]
[364654517,1749184245097,-155.563721,0.00030072,2]
[364654518,1749184245107,-1185.08313058,0.00030076,2]
[364654519,1749184245118,-155.563721,0.00030079,2]
[364654520,1749184245128,-150.0,0.00030081,2]
[364654521,1749184245137,-150.0,0.00030086,2]
[364654522,1749184245146,-155.563721,0.00030086,2]
[364654523,1749184245156,-152.11467974,0.00030087,2]
[364654524,1749184245166,-152.91579894,0.00030088,2]
[364654525,1749184245175,-497.17371453,0.00030092,2]
[364654526,1749184245186,-150.0,0.00030093,2]
[364654527,1749184245195,-155.563721,0.00030093,2]
[364654528,1749184245207,-150.0,0.00030094,2]
[364654529,1749184245216,-150.0,0.00030096,2]
[364654530,1749184245227,-150.0,0.00030096,2]
[364654531,1749184245236,-150.0,0.00030099,2]
[364654532,1749184245245,-155.563721,0.000301,2]
[364654533,1749184245256,-150.0,0.00030102,2]
[364654534,1749184245266,-1185.08313058,0.00030108,2]
[364654535,1749184245275,-150.0,0.00030108,2]
[364654536,1749184245288,-150.0,0.00030109,2]
[364654537,1749184245298,-150.0,0.0003011,2]
[364654538,1749184245307,-200.0,0.00030112,2]
[364654539,1749184245317,-150.0,0.00030115,2]
[364654540,1749184245327,-300.0,0.00030115,2]
[364654541,1749184245336,-200.0,0.00030115,2]
[364654542,1749184245346,-150.0,0.0003012,2]
[364654543,1749184245356,-150.0,0.00030125,2]
[364654544,1749184245366,-1000.0,0.00030128,2]
[364654545,1749184245376,-150.0,0.00030129,2]
[364654546,1749184245385,-497.17371453,0.00030129,2]
[364654547,1749184245394,-1185.08313058,0.00030139,2]
[364654548,1749184245405,-91228.8108053,0.00030144,2]
[364654549,1749184245414,-45614.4054027,0.00030144,2]
[364654550,1749184245424,-150.0,0.00030146,2]
[364654551,1749184245433,-4050.01,0.00030153,7]
[364654552,1749184245443,-4050.01,0.00030153,7]
[364654553,1749184245452,-15204.8018009,0.00030153,2]
[364654554,1749184245462,-5514.32474596,0.00030153,2]
[364654555,1749184245471,-189800.72354459,0.00030154,2]
[364654556,1749184245484,-7861.69986741,0.00030154,2]
[364654557,1749184245494,-15316.21209679,0.00030154,2]
[364654558,1749184245655,-513.65,0.00030154,2]
[364654559,1749184245705,-7531.3678063,0.00030154,2]
[364654562,1749184246410,-1017.97872802,0.00030154,2]
[364654563,1749184246513,-4015.66614792,0.00030154,2]
[364654572,1749184334270,152.77,0.00013699,2]
[364654575,1749184418676,150.0,0.00015,20]
[364654576,1749184447697,8467.22297363,0.000352,120]
[364654577,1749184492413,576.76267456,0.00035,120]
[364654587,1749184727828,307.52244782,0.000356,120]
[364654592,1749185193824,1500.0,0.00035,120]
[364654593,1749185228061,2002.69,0.00035616,120]
[364654597,1749185303780,500.0,0.00035616,120]
[364654598,1749185312846,150.0,0.000195,5]
[364654600,1749185397367,3265.6504136,0.00035,120]
[364654601,1749185402761,324.63,0.00019102,2]
[364654609,1749185432382,-161.21144629,0.00024832,2]
[364654610,1749185432392,-348.5296278,0.00024931,2]
[364654611,1749185432402,-500.0,0.00024932,2]
[364654612,1749185432412,-165.55491312,0.00024932,5]
[364654613,1749185432507,-24286.1099048,0.00024932,5]
[364654614,1749185432538,-659.14566,0.00024932,5]
[364654615,1749185432657,-82978.30163712,0.00024932,5]
[364654616,1749185432668,-903.69109655,0.00024932,5]
[364654617,1749185432680,-1151.81263274,0.00024932,5]
[364655328,1749185440671,-27347.10879253,0.00024932,5]
[364655329,1749185440681,-500.0,0.00025,2]
[364655330,1749185440691,-502.48719586,0.00025,2]
[364655331,1749185440700,-506.10822451,0.00025,2]
[364655332,1749185440710,-1000.0,0.00025548,2]
[364655333,1749185440719,-205.80899512,0.000259,14]
[364655334,1749185440729,-1500.0,0.00026096,2]
[364655335,1749185440741,-576.45,0.00026602,2]
[364655336,1749185440753,-2000.0,0.00026644,2]
[364655337,1749185440763,-205.8089951,0.000269,16]
[364655338,1749185440772,-2500.0,0.00027192,2]
[364655339,1749185440781,-206.0,0.00027354,2]
[364655340,1749185440791,-500.0,0.00027397,2]
[364655341,1749185440799,-500.0,0.00027397,2]
[364655342,1749185440808,-468.27592257,0.00027397,2]
[364655343,1749185440817,-500.0,0.00027397,2]
[364655344,1749185440827,-500.0,0.00027397,2]
[364655345,1749185440836,-500.0,0.00027397,2]
[364655346,1749185440846,-300.0,0.00027397,2]
[364655347,1749185440855,-500.0,0.00027484,7]
[364655348,1749185440864,-1507.59364359,0.0002774,5]
[364655349,1749185440874,-205.8089951,0.000279,18]
[364655350,1749185440883,-500.0,0.00028306,7]
[364655351,1749185440893,-150.0,0.00028492,7]
[364655352,1749185440902,-1000.0,0.00028524,2]
[364655353,1749185440911,-576.45,0.00028866,2]
[364655354,1749185440920,-205.8089951,0.000289,20]
[364655355,1749185440930,-266.55,0.0002897,2]
[364655356,1749185440939,-151.0,0.00029081,2]
[364655357,1749185440949,-151.0,0.00029081,2]
[364655358,1749185440958,-151.0,0.00029081,2]
[364655359,1749185440967,-151.0,0.00029081,2]
[364655360,1749185440978,-151.0,0.00029081,2]
[364655361,1749185440988,-207.4,0.00029081,2]
[364655362,1749185440998,-5131.29,0.00029098,2]
[364655363,1749185441007,-152.77,0.0002911,2]
[364655364,1749185441016,-500.0,0.00029128,7]
[364655365,1749185441025,-243.567275,0.00029259,6]
[364655366,1749185441035,-213.0,0.0002944,30]
[364655367,1749185441044,-195.38902034,0.00029726,30]
[364655368,1749185441053,-1214.2796,0.0002985,2]
[364655369,1749185441063,-2980.43,0.00029868,2]
[364655370,1749185441072,-205.8089951,0.000299,21]
[364655371,1749185441082,-213.0,0.0002991,30]
[364655372,1749185441092,-500.0,0.0002995,7]
[364655373,1749185441101,-2980.37,0.0003001,2]
[364655374,1749185441111,-2980.37,0.0003003,2]
[364655375,1749185441121,-153.27718171,0.00030041,2]
[364655376,1749185441130,-183.64986238,0.00030041,2]
[364655377,1749185441139,-1000.0,0.00030045,2]
[364655378,1749185441149,-372.43046431,0.00030051,2]
[364655379,1749185441158,-195.38902034,0.00030055,30]
[364655380,1749185441167,-313.53011796,0.00030064,2]
[364655381,1749185441177,-150.0,0.00030067,2]
[364655382,1749185441187,-372.43046425,0.00030071,2]
[364655383,1749185441196,-372.43046425,0.0003009,2]
[364655384,1749185441206,-150.0,0.00030095,2]
[364655385,1749185441215,-261.17843565,0.000301,2]
[364655386,1749185441226,-453.45830047,0.000301,2]
[364655387,1749185441237,-372.43046425,0.0003011,2]
[364655388,1749185441247,-372.43046425,0.0003013,2]
[364655389,1749185441256,-154.55,0.0003013,2]
[364655390,1749185441266,-179.0,0.00030137,2]
[364655391,1749185441276,-288.24941054,0.00030137,5]
[364655392,1749185441286,-283.10917111,0.00030139,2]
[364655393,1749185441296,-249.61672234,0.00030139,2]
[364655394,1749185441306,-219.30970544,0.00030139,2]
[364655395,1749185441316,-273.53054681,0.00030139,2]
[364655396,1749185441325,-350.80372639,0.00030139,2]
[364655397,1749185441335,-164.96,0.00030139,2]
[364655398,1749185441344,-3347.76646586,0.0003014,6]
[364655399,1749185441353,-1178134.66546553,0.0003014,6]
[364655400,1749185441362,-295830.375115,0.0003014,2]
[364655401,1749185441372,-104989.694353,0.0003014,2]
[364655402,1749185441381,-62280.0789716,0.00030141,2]
[364655403,1749185441391,-50550.5935775,0.00030141,2]
[364655404,1749185441400,-3888.50719827,0.00030141,2]
[364655405,1749185441409,-500.0,0.00030143,7]
[364655406,1749185441419,-500.0,0.00030143,7]
[364655407,1749185441428,-3888.50719827,0.00030143,2]
[364655408,1749185441437,-3168.426,0.00030144,25]
[364655409,1749185441447,-163.412,0.00030144,25]
[364655410,1749185441456,-500.0,0.00030144,7]
[364655411,1749185441465,-10716.42,0.00030144,7]
[364655412,1749185441475,-500.0,0.00030144,7]
[364655413,1749185441485,-34996.5647844,0.00030144,2]
[364655414,1749185441495,-1068.8088242,0.00030145,2]
[364655415,1749185441504,-4398.6579912,0.00030145,2]
[364655416,1749185441513,-9989.4292395,0.00030145,2]
[364655417,1749185441523,-126097.5108216,0.00030145,2]
[364655418,1749185441532,-372.43046425,0.00030149,2]
[364655419,1749185441541,-10716.42,0.0003015,7]
[364655420,1749185441551,-10716.42,0.0003015,7]
[364655421,1749185441561,-1000.0,0.00030152,2]
[364655422,1749185441570,-1000.0,0.00030152,2]
[364655423,1749185441579,-1128.0,0.00030153,5]
[364655424,1749185441588,-150.0,0.00030153,2]
[364655425,1749185441602,-10716.42,0.00030153,7]
[364655426,1749185441611,-500.0,0.00030153,7]
[364655427,1749185441622,-500.0,0.00030153,7]
[364655428,1749185441642,-500.0,0.00030153,7]
[364655429,1749185441652,-430.06107035,0.00030153,2]
[364655430,1749185441661,-209.154523,0.00030154,7]
[364655431,1749185441671,-209.154523,0.00030154,7]
[364655432,1749185441680,-48223.16952687,0.00030154,2]
[364655433,1749185441690,-150.0,0.00030158,7]
[364655434,1749185441699,-150.0,0.00030158,2]
[364655435,1749185441708,-151.0,0.0003016,2]
[364655436,1749185441719,-151.0,0.00030161,7]
[364655437,1749185441730,-151.0,0.00030161,7]
[364655438,1749185441739,-151.0,0.00030161,7]
[364655439,1749185441749,-151.0,0.00030161,7]
[364655440,1749185441758,-159.604154,0.00030161,7]
[364655441,1749185441767,-159.604154,0.00030161,7]
[364655442,1749185441776,-168.77765,0.00030161,7]
[364655443,1749185441786,-151.0,0.00030161,7]
[364655444,1749185441794,-151.0,0.00030161,7]
[364655445,1749185441804,-167.171432,0.00030161,7]
[364655446,1749185441814,-167.171432,0.00030161,7]
[364655447,1749185441823,-151.0,0.00030162,7]
[364655448,1749185441832,-151.0,0.00030162,7]
[364655449,1749185441842,-151.0,0.00030162,7]
[364655450,1749185441851,-151.0,0.00030162,7]
[364655451,1749185441860,-151.0,0.00030162,7]
[364655452,1749185441870,-197.80712,0.00030162,7]
[364655453,1749185441879,-197.80712,0.00030162,7]
[364655454,1749185441888,-166.778531,0.00030162,7]
[364655455,1749185441898,-166.778531,0.00030162,7]
[364655456,1749185441907,-151.0,0.00030162,7]
[364655457,1749185441917,-151.0,0.00030162,7]
[364655458,1749185441926,-151.0,0.00030162,7]
[364655459,1749185441936,-151.0,0.00030162,7]
[364655460,1749185441946,-151.0,0.00030162,7]
[364655461,1749185441955,-151.0,0.00030162,7]
[364655462,1749185441964,-151.0,0.00030162,7]
[364655463,1749185441973,-669.26835067,0.00030163,10]
[364655464,1749185441985,-300.0,0.00030163,10]
[364655465,1749185441994,-666.0,0.00030163,10]
[364655466,1749185442003,-1101.55414014,0.00030163,15]
[364655467,1749185442012,-1101.55414014,0.00030163,15]
[364655468,1749185442022,-1101.55414013,0.00030163,15]
[364655469,1749185442031,-152.0,0.00030163,15]
[364655470,1749185442040,-500.0,0.00030163,2]
[364655471,1749185442050,-150.0,0.00030163,2]
[364655472,1749185442059,-500.80163007,0.00030163,7]
[364655473,1749185442070,-10716.42,0.00030163,7]
[364655474,1749185442080,-10716.42,0.00030163,7]
[364655475,1749185442090,-10716.42,0.00030163,7]
[364655476,1749185442100,-10716.42,0.00030163,7]
[364655477,1749185442109,-10716.42,0.00030163,7]
[364655478,1749185442118,-500.0,0.00030163,7]
[364655479,1749185442127,-500.0,0.00030163,7]
[364655480,1749185442137,-500.0,0.00030163,7]
[364655481,1749185442146,-500.0,0.00030163,7]
[364655482,1749185442156,-500.0,0.00030163,7]
[364655483,1749185442166,-362.67120595,0.00030164,2]
[364655484,1749185442175,-151.0,0.00030164,7]
[364655485,1749185442184,-154.309329,0.00030164,7]
[364655486,1749185442193,-413.200947,0.00030164,7]
[364655487,1749185442203,-394.617702,0.00030164,7]
[364655488,1749185442212,-223.440975,0.00030164,7]
[364655489,1749185442221,-151.0,0.00030164,7]
[364655490,1749185442232,-151.0,0.00030164,7]
[364655491,1749185442241,-151.0,0.00030164,7]
[364655492,1749185442251,-151.0,0.00030164,7]
[364655493,1749185442260,-151.0,0.00030164,7]
[364655494,1749185442272,-151.0,0.00030164,7]
[364655495,1749185442288,-151.0,0.00030164,7]
[364655496,1749185442304,-151.0,0.00030164,7]
[364655497,1749185442315,-151.0,0.00030164,7]
[364655498,1749185442329,-151.0,0.00030164,7]
[364655499,1749185442343,-151.0,0.00030164,7]
[364655500,1749185442357,-151.0,0.00030164,7]
[364655501,1749185442372,-162.714516,0.00030164,7]
[364655502,1749185442385,-1674.141142,0.00030164,7]
[364655503,1749185442398,-1842.658272,0.00030164,7]
[364655504,1749185442408,-151.0,0.00030164,7]
[364655505,1749185442422,-151.0,0.00030164,7]
[364655506,1749185442436,-151.0,0.00030164,7]
[364655507,1749185442450,-227.379596,0.00030164,7]
[364655508,1749185442464,-227.379596,0.00030164,7]
[364655509,1749185442478,-227.379596,0.00030164,7]
[364655510,1749185442494,-227.379596,0.00030164,7]
[364655511,1749185442509,-151.0,0.00030164,7]
[364655512,1749185442522,-151.0,0.00030164,7]
[364655513,1749185442536,-151.0,0.00030164,7]
[364655514,1749185442550,-151.0,0.00030164,7]
[364655515,1749185442563,-151.0,0.00030164,7]
[364655516,1749185442577,-151.0,0.00030164,7]
[364655517,1749185442591,-151.0,0.00030164,7]
[364655518,1749185442611,-151.0,0.00030164,7]
[364655519,1749185442627,-151.0,0.00030164,7]
[364655520,1749185442637,-151.0,0.00030164,7]
[364655521,1749185442649,-153.329574,0.00030164,7]
[364655522,1749185442666,-151.0,0.00030164,7]
[364655523,1749185442677,-151.0,0.00030164,7]
[364655524,1749185442688,-151.0,0.00030164,7]
[364655525,1749185442699,-151.0,0.00030164,7]
[364655526,1749185442712,-23684.9,0.00030164,7]
[364655527,1749185442727,-151.719318,0.00030164,7]
[364655528,1749185442742,-152.060433,0.00030164,7]
[364655529,1749185442753,-151.0,0.00030164,7]
[364655530,1749185442764,-151.0,0.00030164,7]
[364655531,1749185442776,-154.149509,0.00030164,7]
[364655532,1749185442788,-159.604154,0.00030164,7]
[364655533,1749185442800,-159.604154,0.00030164,7]
[364655534,1749185442813,-159.604154,0.00030164,7]
[364655535,1749185442829,-159.604154,0.00030164,7]
[364655536,1749185442841,-159.604154,0.00030164,7]
[364655537,1749185442853,-159.604154,0.00030164,7]
[364655538,1749185442866,-159.604154,0.00030164,7]
[364655539,1749185442878,-159.604154,0.00030164,7]
[364655540,1749185442891,-151.0,0.00030164,7]
[364655541,1749185442902,-151.0,0.00030164,7]
[364655542,1749185442915,-151.0,0.00030164,7]
[364655543,1749185442927,-151.0,0.00030164,7]
[364655544,1749185442939,-151.0,0.00030164,7]
[364655545,1749185442952,-151.0,0.00030164,7]
[364655546,1749185442965,-154.20065,0.00030164,7]
[364655547,1749185442977,-151.0,0.00030164,7]
[364655548,1749185442991,-151.0,0.00030164,7]
[364655549,1749185443003,-151.0,0.00030164,7]
[364655550,1749185443015,-151.0,0.00030164,7]
[364655551,1749185443027,-151.0,0.00030164,7]
[364655552,1749185443038,-151.0,0.00030164,7]
[364655553,1749185443050,-151.0,0.00030164,7]
[364655554,1749185443062,-151.0,0.00030164,7]
[364655556,1749185443074,-151.0,0.00030164,7]
[364655557,1749185443087,-151.0,0.00030164,7]
[364655558,1749185443100,-151.0,0.00030164,7]
[364655559,1749185443111,-153.846551,0.00030164,7]
[364655560,1749185443124,-151.0,0.00030164,7]
[364655561,1749185443136,-151.0,0.00030164,7]
[364655562,1749185443148,-151.0,0.00030164,7]
[364655563,1749185443161,-151.0,0.00030164,7]